[Event "Titled Tuesday Blitz June 20 Late 2023"]
[White "Richter, Paul"]
[Black "Tarnowska, Aleksandra"]
[WhiteFideId "2046350"]
[BlackFideId "1180967"]
[WhiteElo "2530"]
[BlackElo "1776"]
[Result "1-0"]
[Round "2"]
[TimeControl "180+2"]
[Date "2023.06.20"]
[WhiteClock "0:02:17"]
[BlackClock "0:00:15"]
[Board "104"]

1. e4 {[%clk 0:03:00]}  c5 {[%clk 0:02:59]} 2. Nf3 {[%clk 0:03:00]}  e6 {[%clk 0:03:00]} 3. d3 {[%clk 0:03:01]}  a6 {[%clk 0:03:00]} 4. Nbd2 {[%clk 0:03:01]}  Qc7 {[%clk 0:02:56]} 5. g3 {[%clk 0:03:02]}  d6 {[%clk 0:02:56]} 6. Bg2 {[%clk 0:03:03]}  Nf6 {[%clk 0:02:56]} 7. O-O {[%clk 0:03:03]}  Be7 {[%clk 0:02:56]} 8. a4 {[%clk 0:03:03]}  b6 {[%clk 0:02:55]} 9. Re1 {[%clk 0:03:03]}  Bb7 {[%clk 0:02:55]} 10. Nc4 {[%clk 0:03:04]}  Nbd7 {[%clk 0:02:27]} 11. Bf4 {[%clk 0:02:59]}  Nh5 {[%clk 0:01:47]} 12. Bd2 {[%clk 0:02:51]}  Nhf6 {[%clk 0:01:09]} 13. Bf4 {[%clk 0:02:43]}  Nh5 {[%clk 0:01:09]} 14. Bg5 {[%clk 0:02:41]}  Bxg5 {[%clk 0:00:59]} 15. Nxg5 {[%clk 0:02:42]}  Nhf6 {[%clk 0:00:58]} 16. e5 {[%clk 0:02:37]}  Nxe5 {[%clk 0:00:46]} 17. Bxb7 {[%clk 0:02:34]}  Nxc4 {[%clk 0:00:39]} 18. Bxa8 {[%clk 0:02:35]}  Ne5 {[%clk 0:00:38]} 19. f4 {[%clk 0:02:33]}  Neg4 {[%clk 0:00:35]} 20. Bf3 {[%clk 0:02:29]}  h5 {[%clk 0:00:34]} 21. Qe2 {[%clk 0:02:26]}  Ke7 {[%clk 0:00:22]} 22. Bxg4 {[%clk 0:02:17]}  Nxg4 {[%clk 0:00:17]} 23. Nxf7 {[%clk 0:02:17]}  Kxf7 {[%clk 0:00:16]} 24. Qxe6+ {[%clk 0:02:16]}  Kf8 {[%clk 0:00:15]} 25. Qe8# {[%clk 0:02:17]} 1-0


[Site "https://www.chess.com"]

[Event "Titled Tuesday Blitz June 20 Late 2023"]
[White "Licznerski, Lukasz"]
[Black "Herrera, Juan Sebastian"]
[WhiteFideId "1179250"]
[BlackFideId "4403266"]
[WhiteElo "2453"]
[BlackElo "2255"]
[Result "0-1"]
[Round "2"]
[TimeControl "180+2"]
[Date "2023.06.20"]
[WhiteClock "0:00:00"]
[BlackClock "0:00:08"]
[Board "109"]

1. e4 {[%clk 0:03:00]}  Nf6 {[%clk 0:02:57]} 2. e5 {[%clk 0:03:01]}  Nd5 {[%clk 0:02:56]} 3. d4 {[%clk 0:03:02]}  d6 {[%clk 0:02:57]} 4. c4 {[%clk 0:03:02]}  Nb6 {[%clk 0:02:57]} 5. exd6 {[%clk 0:03:03]}  cxd6 {[%clk 0:02:58]} 6. Nc3 {[%clk 0:03:02]}  g6 {[%clk 0:02:59]} 7. Be3 {[%clk 0:03:03]}  Bg7 {[%clk 0:02:59]} 8. Rc1 {[%clk 0:03:03]}  O-O {[%clk 0:03:00]} 9. b3 {[%clk 0:03:03]}  e5 {[%clk 0:03:01]} 10. dxe5 {[%clk 0:03:04]}  dxe5 {[%clk 0:03:02]} 11. Qxd8 {[%clk 0:03:04]}  Rxd8 {[%clk 0:03:02]} 12. c5 {[%clk 0:03:05]}  N6d7 {[%clk 0:03:03]} 13. Bc4 {[%clk 0:03:03]}  Nc6 {[%clk 0:02:59]} 14. Nf3 {[%clk 0:02:55]}  h6 {[%clk 0:02:56]} 15. Ne4 {[%clk 0:02:48]}  Na5 {[%clk 0:02:56]} 16. Be2 {[%clk 0:02:38]}  f5 {[%clk 0:02:55]} 17. Nd6 {[%clk 0:02:34]}  e4 {[%clk 0:02:55]} 18. Nd2 {[%clk 0:02:06]}  Ne5 {[%clk 0:02:44]} 19. f4 {[%clk 0:01:52]}  Nd3+ {[%clk 0:02:10]} 20. Bxd3 {[%clk 0:01:51]}  exd3 {[%clk 0:02:11]} 21. Nf3 {[%clk 0:01:44]}  b6 {[%clk 0:02:02]} 22. Kd2 {[%clk 0:01:07]}  bxc5 {[%clk 0:01:55]} 23. Bxc5 {[%clk 0:01:08]}  Nb7 {[%clk 0:01:13]} 24. Nxc8 {[%clk 0:00:56]}  Raxc8 {[%clk 0:01:13]} 25. Be7 {[%clk 0:00:27]}  Rxc1 {[%clk 0:00:40]} 26. Rxc1 {[%clk 0:00:28]}  Rd7 {[%clk 0:00:40]} 27. Rc8+ {[%clk 0:00:24]}  Kf7 {[%clk 0:00:34]} 28. Bb4 {[%clk 0:00:02]}  a5 {[%clk 0:00:34]} 29. Bc3 {[%clk 0:00:03]}  Nd6 {[%clk 0:00:24]} 30. Bxg7 {[%clk 0:00:03]}  Ne4+ {[%clk 0:00:22]} 31. Kd1 {[%clk 0:00:02]}  Kxg7 {[%clk 0:00:19]} 32. Rc4 {[%clk 0:00:02]}  Nf2+ {[%clk 0:00:14]} 33. Kd2 {[%clk 0:00:02]}  Ne4+ {[%clk 0:00:15]} 34. Kd1 {[%clk 0:00:02]}  g5 {[%clk 0:00:11]} 35. Rd4 {[%clk 0:00:03]}  Rc7 {[%clk 0:00:07]} 36. fxg5 {[%clk 0:00:03]}  hxg5 {[%clk 0:00:08]} 37. g4 {[%clk 0:00:02]}  Nf2+ {[%clk 0:00:07]} 38. Kd2 {[%clk 0:00:03]}  fxg4 {[%clk 0:00:06]} 39. Ne5 {[%clk 0:00:02]}  Rc2+ {[%clk 0:00:07]} 40. Ke1 {[%clk 0:00:01]}  Re2+ {[%clk 0:00:07]} 41. Kf1 {[%clk 0:00:02]}  Rxe5 {[%clk 0:00:04]} 42. Kxf2 {[%clk 0:00:02]}  Re2+ {[%clk 0:00:05]} 43. Kg3 {[%clk 0:00:03]}  d2 {[%clk 0:00:03]} 44. a3 {[%clk 0:00:01]}  Kg6 {[%clk 0:00:02]} 45. b4 {[%clk 0:00:01]}  axb4 {[%clk 0:00:02]} 46. axb4 {[%clk 0:00:02]}  Kf5 {[%clk 0:00:03]} 47. b5 {[%clk 0:00:02]}  Ke5 {[%clk 0:00:03]} 48. Rd8 {[%clk 0:00:02]}  Ke4 {[%clk 0:00:02]} 49. b6 {[%clk 0:00:01]}  Re3+ {[%clk 0:00:03]} 50. Kxg4 {[%clk 0:00:01]}  Rd3 {[%clk 0:00:04]} 51. Re8+ {[%clk 0:00:01]}  Kd5 {[%clk 0:00:03]} 52. Rd8+ {[%clk 0:00:01]}  Kc4 {[%clk 0:00:04]} 53. Rxd3 {[%clk 0:00:02]}  Kxd3 {[%clk 0:00:04]} 54. Kxg5 {[%clk 0:00:02]}  d1=Q {[%clk 0:00:05]} 55. b7 {[%clk 0:00:03]}  Qc1+ {[%clk 0:00:05]} 56. Kg6 {[%clk 0:00:03]}  Qc6+ {[%clk 0:00:06]} 57. Kg5 {[%clk 0:00:03]}  Qxb7 {[%clk 0:00:06]} 58. h4 {[%clk 0:00:04]}  Qg7+ {[%clk 0:00:07]} 59. Kf5 {[%clk 0:00:04]}  Qh7+ {[%clk 0:00:07]} 60. Kg5 {[%clk 0:00:05]}  Ke4 {[%clk 0:00:08]} 61. h5 {[%clk 0:00:05]}  Ke5 {[%clk 0:00:08]} 62. h6 {[%clk 0:00:06]}  Ke6 {[%clk 0:00:08]} 63. Kh5 {[%clk 0:00:06]}  Kf5 {[%clk 0:00:09]} 64. Kh4 {[%clk 0:00:07]}  Qxh6+ {[%clk 0:00:09]} 65. Kg3 {[%clk 0:00:00]}  Qd2 {[%clk 0:00:08]} 0-1


[Site "https://www.chess.com"]

[Event "Titled Tuesday Blitz June 20 Late 2023"]
[White "Harsh Suresh"]
[Black "Slavin, Alexey"]
[WhiteFideId "45018464"]
[BlackFideId "24104388"]
[WhiteElo "2209"]
[BlackElo "2264"]
[Result "1-0"]
[Round "2"]
[TimeControl "180+2"]
[Date "2023.06.20"]
[WhiteClock "0:02:06"]
[BlackClock "0:00:44"]
[Board "110"]

1. b3 {[%clk 0:03:00]}  Nf6 {[%clk 0:02:58]} 2. Bb2 {[%clk 0:03:00]}  d6 {[%clk 0:02:58]} 3. e3 {[%clk 0:03:00]}  Nc6 {[%clk 0:02:58]} 4. d4 {[%clk 0:02:59]}  Bg4 {[%clk 0:02:52]} 5. Be2 {[%clk 0:02:59]}  Bxe2 {[%clk 0:02:50]} 6. Nxe2 {[%clk 0:03:00]}  e6 {[%clk 0:02:48]} 7. O-O {[%clk 0:03:00]}  Be7 {[%clk 0:02:48]} 8. c4 {[%clk 0:03:00]}  O-O {[%clk 0:02:48]} 9. Nbc3 {[%clk 0:02:59]}  Re8 {[%clk 0:02:48]} 10. a3 {[%clk 0:02:57]}  Bf8 {[%clk 0:02:47]} 11. Qc2 {[%clk 0:02:56]}  e5 {[%clk 0:02:47]} 12. Rad1 {[%clk 0:02:52]}  exd4 {[%clk 0:02:46]} 13. Nxd4 {[%clk 0:02:51]}  Nxd4 {[%clk 0:02:46]} 14. Rxd4 {[%clk 0:02:52]}  Qe7 {[%clk 0:02:41]} 15. Nd5 {[%clk 0:02:50]}  Nxd5 {[%clk 0:02:35]} 16. cxd5 {[%clk 0:02:51]}  Qd7 {[%clk 0:02:19]} 17. Rc4 {[%clk 0:02:50]}  Re7 {[%clk 0:02:19]} 18. Rc1 {[%clk 0:02:49]}  Rc8 {[%clk 0:02:19]} 19. a4 {[%clk 0:02:46]}  a6 {[%clk 0:02:18]} 20. Bd4 {[%clk 0:02:41]}  g6 {[%clk 0:02:02]} 21. Bb6 {[%clk 0:02:37]}  c5 {[%clk 0:01:38]} 22. dxc6 {[%clk 0:02:37]}  bxc6 {[%clk 0:01:36]} 23. Rxc6 {[%clk 0:02:37]}  Rxc6 {[%clk 0:01:36]} 24. Qxc6 {[%clk 0:02:38]}  Qe6 {[%clk 0:01:36]} 25. Qc4 {[%clk 0:02:26]}  d5 {[%clk 0:01:27]} 26. Qxa6 {[%clk 0:02:23]}  h5 {[%clk 0:01:25]} 27. a5 {[%clk 0:02:14]}  Bg7 {[%clk 0:01:24]} 28. Qc8+ {[%clk 0:02:13]}  Kh7 {[%clk 0:01:12]} 29. Qxe6 {[%clk 0:02:12]}  Rxe6 {[%clk 0:01:12]} 30. g3 {[%clk 0:02:09]}  Bb2 {[%clk 0:01:07]} 31. Rc7 {[%clk 0:02:09]}  Kg7 {[%clk 0:01:07]} 32. Rb7 {[%clk 0:02:08]}  Ba3 {[%clk 0:00:44]} 33. a6 {[%clk 0:02:06]} 1-0


[Site "https://www.chess.com"]

[Event "Titled Tuesday Blitz June 20 Late 2023"]
[White "Goncalves, Davi Sulzbacher"]
[Black "Tsaruk, Maksim"]
[WhiteFideId "2154510"]
[BlackFideId "13511173"]
[WhiteElo "2182"]
[BlackElo "2363"]
[Result "0-1"]
[Round "2"]
[TimeControl "180+2"]
[Date "2023.06.20"]
[WhiteClock "0:00:00"]
[BlackClock "0:00:10"]
[Board "113"]

1. Nf3 {[%clk 0:03:00]}  Nf6 {[%clk 0:02:59]} 2. d4 {[%clk 0:02:58]}  d5 {[%clk 0:02:57]} 3. c4 {[%clk 0:02:58]}  e6 {[%clk 0:02:58]} 4. Nc3 {[%clk 0:02:57]}  c5 {[%clk 0:02:57]} 5. cxd5 {[%clk 0:02:57]}  Nxd5 {[%clk 0:02:58]} 6. e4 {[%clk 0:02:56]}  Nxc3 {[%clk 0:02:58]} 7. bxc3 {[%clk 0:02:57]}  cxd4 {[%clk 0:02:59]} 8. cxd4 {[%clk 0:02:57]}  Bb4+ {[%clk 0:03:00]} 9. Bd2 {[%clk 0:02:58]}  Bxd2+ {[%clk 0:03:00]} 10. Qxd2 {[%clk 0:02:58]}  O-O {[%clk 0:03:01]} 11. Be2 {[%clk 0:02:50]}  b6 {[%clk 0:03:01]} 12. O-O {[%clk 0:02:51]}  Bb7 {[%clk 0:03:01]} 13. Qf4 {[%clk 0:02:33]}  Nd7 {[%clk 0:03:00]} 14. Rad1 {[%clk 0:02:08]}  Nf6 {[%clk 0:02:46]} 15. d5 {[%clk 0:02:08]}  exd5 {[%clk 0:02:46]} 16. e5 {[%clk 0:02:09]}  Ne4 {[%clk 0:02:46]} 17. Nd4 {[%clk 0:01:35]}  Qg5 {[%clk 0:02:38]} 18. Qxg5 {[%clk 0:01:20]}  Nxg5 {[%clk 0:02:39]} 19. Nf5 {[%clk 0:01:20]}  Rad8 {[%clk 0:02:36]} 20. Nd6 {[%clk 0:00:40]}  Ba8 {[%clk 0:02:35]} 21. f4 {[%clk 0:00:14]}  Ne4 {[%clk 0:02:33]} 22. Nb5 {[%clk 0:00:14]}  a6 {[%clk 0:02:30]} 23. Nd4 {[%clk 0:00:14]}  b5 {[%clk 0:02:17]} 24. Bf3 {[%clk 0:00:14]}  Rc8 {[%clk 0:02:11]} 25. Rd3 {[%clk 0:00:14]}  Rc4 {[%clk 0:02:03]} 26. Nf5 {[%clk 0:00:14]}  Nc5 {[%clk 0:00:45]} 27. Rd4 {[%clk 0:00:11]}  Ne6 {[%clk 0:00:44]} 28. Rxc4 {[%clk 0:00:06]}  dxc4 {[%clk 0:00:44]} 29. Ne7+ {[%clk 0:00:05]}  Kh8 {[%clk 0:00:43]} 30. f5 {[%clk 0:00:06]}  Nc5 {[%clk 0:00:37]} 31. f6 {[%clk 0:00:03]}  gxf6 {[%clk 0:00:34]} 32. exf6 {[%clk 0:00:03]}  c3 {[%clk 0:00:14]} 33. Rc1 {[%clk 0:00:03]}  b4 {[%clk 0:00:14]} 34. a3 {[%clk 0:00:04]}  a5 {[%clk 0:00:14]} 35. axb4 {[%clk 0:00:04]}  axb4 {[%clk 0:00:15]} 36. Bxa8 {[%clk 0:00:05]}  Rxa8 {[%clk 0:00:12]} 37. Nd5 {[%clk 0:00:06]}  Nd3 {[%clk 0:00:11]} 38. Rd1 {[%clk 0:00:00]}  c2 {[%clk 0:00:10]} 0-1


[Site "https://www.chess.com"]

[Event "Titled Tuesday Blitz June 20 Late 2023"]
[White "Lin, Dachey"]
[Black "Olsson, William"]
[WhiteFideId "2029650"]
[BlackFideId "1741721"]
[WhiteElo "2313"]
[BlackElo "2197"]
[Result "0-1"]
[Round "2"]
[TimeControl "180+2"]
[Date "2023.06.20"]
[WhiteClock "0:00:54"]
[BlackClock "0:01:44"]
[Board "114"]

1. g4 {[%clk 0:03:00]}  c5 {[%clk 0:02:57]} 2. Bg2 {[%clk 0:02:52]}  Nc6 {[%clk 0:02:57]} 3. c4 {[%clk 0:02:51]}  g6 {[%clk 0:02:58]} 4. h4 {[%clk 0:02:51]}  Bg7 {[%clk 0:02:57]} 5. h5 {[%clk 0:02:44]}  g5 {[%clk 0:02:56]} 6. Nc3 {[%clk 0:02:38]}  h6 {[%clk 0:02:56]} 7. d3 {[%clk 0:02:35]}  Nf6 {[%clk 0:02:55]} 8. e4 {[%clk 0:02:32]}  d6 {[%clk 0:02:55]} 9. Bh3 {[%clk 0:02:31]}  Ne5 {[%clk 0:02:50]} 10. f3 {[%clk 0:02:26]}  a6 {[%clk 0:02:47]} 11. Be3 {[%clk 0:02:27]}  Bd7 {[%clk 0:02:46]} 12. Bf1 {[%clk 0:01:50]}  b5 {[%clk 0:02:44]} 13. Rc1 {[%clk 0:01:46]}  bxc4 {[%clk 0:02:41]} 14. dxc4 {[%clk 0:01:47]}  Rb8 {[%clk 0:02:41]} 15. b3 {[%clk 0:01:47]}  a5 {[%clk 0:02:30]} 16. a4 {[%clk 0:01:42]}  O-O {[%clk 0:02:24]} 17. Nb5 {[%clk 0:01:41]}  Bxb5 {[%clk 0:02:22]} 18. axb5 {[%clk 0:01:40]}  e6 {[%clk 0:02:17]} 19. Rh2 {[%clk 0:01:36]}  Qe7 {[%clk 0:02:13]} 20. Rd2 {[%clk 0:01:36]}  Rfd8 {[%clk 0:02:13]} 21. Kf2 {[%clk 0:01:35]}  Ne8 {[%clk 0:01:56]} 22. Ne2 {[%clk 0:01:29]}  f5 {[%clk 0:01:55]} 23. gxf5 {[%clk 0:01:06]}  exf5 {[%clk 0:01:56]} 24. exf5 {[%clk 0:01:05]}  g4 {[%clk 0:01:54]} 25. f4 {[%clk 0:01:00]}  Nf3 {[%clk 0:01:51]} 26. Bg2 {[%clk 0:00:55]}  Nxd2 {[%clk 0:01:46]} 27. Bd5+ {[%clk 0:00:55]}  Kh8 {[%clk 0:01:46]} 28. Qxd2 {[%clk 0:00:56]}  Nf6 {[%clk 0:01:46]} 29. Be6 {[%clk 0:00:54]}  Ne4+ {[%clk 0:01:44]} 0-1


[Site "https://www.chess.com"]

[Event "Titled Tuesday Blitz June 20 Late 2023"]
[White "Szente Varga, Fruzsina"]
[Black "Timmermans, Mark"]
[WhiteFideId "712264"]
[BlackFideId "1026399"]
[WhiteElo "1994"]
[BlackElo "2460"]
[Result "0-1"]
[Round "2"]
[TimeControl "180+2"]
[Date "2023.06.20"]
[WhiteClock "0:00:00"]
[BlackClock "0:00:04"]
[Board "116"]

1. e4 {[%clk 0:03:00]}  e5 {[%clk 0:02:46]} 2. Nf3 {[%clk 0:02:55]}  Nc6 {[%clk 0:02:46]} 3. Bb5 {[%clk 0:02:54]}  f5 {[%clk 0:02:45]} 4. d3 {[%clk 0:02:46]}  fxe4 {[%clk 0:02:39]} 5. dxe4 {[%clk 0:02:47]}  Nf6 {[%clk 0:02:38]} 6. O-O {[%clk 0:02:47]}  d6 {[%clk 0:02:36]} 7. Nc3 {[%clk 0:02:45]}  Be7 {[%clk 0:02:34]} 8. Bc4 {[%clk 0:02:35]}  Na5 {[%clk 0:02:33]} 9. Qe2 {[%clk 0:02:33]}  Nxc4 {[%clk 0:02:30]} 10. Qxc4 {[%clk 0:02:33]}  Qd7 {[%clk 0:02:22]} 11. Ng5 {[%clk 0:02:31]}  Rf8 {[%clk 0:02:20]} 12. Be3 {[%clk 0:02:07]}  h6 {[%clk 0:02:17]} 13. Nf3 {[%clk 0:02:06]}  Qc6 {[%clk 0:02:17]} 14. Qd3 {[%clk 0:02:02]}  Be6 {[%clk 0:02:14]} 15. a4 {[%clk 0:01:44]}  Bc4 {[%clk 0:02:13]} 16. Qd2 {[%clk 0:01:39]}  Bxf1 {[%clk 0:02:14]} 17. Rxf1 {[%clk 0:01:39]}  Nxe4 {[%clk 0:02:13]} 18. Nxe4 {[%clk 0:01:38]}  Qxe4 {[%clk 0:02:14]} 19. Qa5 {[%clk 0:01:35]}  Kd7 {[%clk 0:02:07]} 20. c3 {[%clk 0:01:23]}  b6 {[%clk 0:01:50]} 21. Qb5+ {[%clk 0:01:20]}  c6 {[%clk 0:01:44]} 22. Qb3 {[%clk 0:01:18]}  Qg4 {[%clk 0:01:36]} 23. Kh1 {[%clk 0:01:13]}  Rxf3 {[%clk 0:01:33]} 24. gxf3 {[%clk 0:01:13]}  Qxf3+ {[%clk 0:01:34]} 25. Kg1 {[%clk 0:01:13]}  Rf8 {[%clk 0:01:34]} 26. a5 {[%clk 0:00:41]}  Rf6 {[%clk 0:01:32]} 27. Rd1 {[%clk 0:00:41]}  Qe2 {[%clk 0:01:16]} 28. h3 {[%clk 0:00:27]}  Rg6+ {[%clk 0:01:15]} 29. Kh2 {[%clk 0:00:27]}  Qf3 {[%clk 0:01:06]} 30. Rg1 {[%clk 0:00:27]}  Rxg1 {[%clk 0:01:06]} 31. Kxg1 {[%clk 0:00:28]}  Qxh3 {[%clk 0:00:50]} 32. axb6 {[%clk 0:00:28]}  axb6 {[%clk 0:00:50]} 33. Qxb6 {[%clk 0:00:28]}  Qg4+ {[%clk 0:00:49]} 34. Kf1 {[%clk 0:00:27]}  Qd1+ {[%clk 0:00:48]} 35. Kg2 {[%clk 0:00:26]}  Qd5+ {[%clk 0:00:49]} 36. Kg1 {[%clk 0:00:23]}  c5 {[%clk 0:00:50]} 37. Qa7+ {[%clk 0:00:19]}  Ke6 {[%clk 0:00:50]} 38. b4 {[%clk 0:00:19]}  h5 {[%clk 0:00:43]} 39. bxc5 {[%clk 0:00:18]}  dxc5 {[%clk 0:00:40]} 40. Qa6+ {[%clk 0:00:18]}  Kf7 {[%clk 0:00:39]} 41. Qc8 {[%clk 0:00:17]}  Qd1+ {[%clk 0:00:36]} 42. Kh2 {[%clk 0:00:16]}  Qf3 {[%clk 0:00:35]} 43. Qd7 {[%clk 0:00:13]}  c4 {[%clk 0:00:11]} 44. Qb5 {[%clk 0:00:11]}  Qf6 {[%clk 0:00:12]} 45. Qxc4+ {[%clk 0:00:10]}  Kg6 {[%clk 0:00:12]} 46. Qe4+ {[%clk 0:00:10]}  Qf5 {[%clk 0:00:11]} 47. Qc6+ {[%clk 0:00:10]}  Bf6 {[%clk 0:00:11]} 48. c4 {[%clk 0:00:10]}  h4 {[%clk 0:00:11]} 49. c5 {[%clk 0:00:10]}  e4 {[%clk 0:00:11]} 50. Kg1 {[%clk 0:00:06]}  Qg4+ {[%clk 0:00:10]} 51. Kf1 {[%clk 0:00:07]}  h3 {[%clk 0:00:11]} 52. Qd6 {[%clk 0:00:06]}  Qf3 {[%clk 0:00:09]} 53. Bf4 {[%clk 0:00:05]}  Kf5 {[%clk 0:00:06]} 54. Bh2 {[%clk 0:00:04]}  Qh1+ {[%clk 0:00:05]} 55. Ke2 {[%clk 0:00:04]}  Qf3+ {[%clk 0:00:04]} 56. Ke1 {[%clk 0:00:04]}  Qc3+ {[%clk 0:00:03]} 57. Ke2 {[%clk 0:00:03]}  Qc2+ {[%clk 0:00:03]} 58. Kf1 {[%clk 0:00:03]}  Qc3 {[%clk 0:00:04]} 59. Qd5+ {[%clk 0:00:03]}  Be5 {[%clk 0:00:03]} 60. Qd6 {[%clk 0:00:03]}  Bxd6 {[%clk 0:00:03]} 61. Bxd6 {[%clk 0:00:00]}  Qd3+ {[%clk 0:00:04]} 0-1


[Site "https://www.chess.com"]

[Event "Titled Tuesday Blitz June 20 Late 2023"]
[White "Sadilek, Peter"]
[Black "Haydon, David L"]
[WhiteFideId "1616439"]
[BlackFideId "415405"]
[WhiteElo "2227"]
[BlackElo "2326"]
[Result "0-1"]
[Round "2"]
[TimeControl "180+2"]
[Date "2023.06.20"]
[WhiteClock "0:00:00"]
[BlackClock "0:00:14"]
[Board "117"]

1. Nf3 {[%clk 0:02:59]}  c6 {[%clk 0:02:59]} 2. c4 {[%clk 0:02:59]}  d5 {[%clk 0:02:59]} 3. d4 {[%clk 0:03:00]}  Nf6 {[%clk 0:02:59]} 4. Nc3 {[%clk 0:03:00]}  e6 {[%clk 0:02:59]} 5. g3 {[%clk 0:02:56]}  Bd6 {[%clk 0:02:58]} 6. Bg2 {[%clk 0:02:57]}  Qe7 {[%clk 0:02:57]} 7. Nd2 {[%clk 0:02:56]}  Nbd7 {[%clk 0:02:55]} 8. O-O {[%clk 0:02:55]}  O-O {[%clk 0:02:54]} 9. e4 {[%clk 0:02:55]}  dxe4 {[%clk 0:02:54]} 10. Ndxe4 {[%clk 0:02:56]}  Nxe4 {[%clk 0:02:53]} 11. Nxe4 {[%clk 0:02:57]}  Bc7 {[%clk 0:02:53]} 12. Re1 {[%clk 0:02:55]}  h6 {[%clk 0:02:52]} 13. Qb3 {[%clk 0:02:52]}  Rd8 {[%clk 0:02:48]} 14. Bd2 {[%clk 0:02:46]}  a5 {[%clk 0:02:46]} 15. Nc3 {[%clk 0:02:43]}  Qf6 {[%clk 0:02:39]} 16. Rad1 {[%clk 0:02:30]}  Nb6 {[%clk 0:02:33]} 17. Be3 {[%clk 0:01:58]}  a4 {[%clk 0:02:26]} 18. Qb4 {[%clk 0:01:58]}  Nd7 {[%clk 0:02:21]} 19. Ne4 {[%clk 0:01:34]}  Qg6 {[%clk 0:02:16]} 20. Qe7 {[%clk 0:01:34]}  Rf8 {[%clk 0:02:07]} 21. Nc5 {[%clk 0:01:24]}  Bd8 {[%clk 0:02:00]} 22. Qd6 {[%clk 0:01:23]}  Nxc5 {[%clk 0:01:56]} 23. dxc5 {[%clk 0:01:21]}  Ba5 {[%clk 0:01:56]} 24. Rf1 {[%clk 0:01:14]}  Qc2 {[%clk 0:01:49]} 25. Qd4 {[%clk 0:01:10]}  e5 {[%clk 0:01:42]} 26. Qxe5 {[%clk 0:01:07]}  Qxc4 {[%clk 0:01:39]} 27. a3 {[%clk 0:00:53]}  f6 {[%clk 0:01:38]} 28. Qe7 {[%clk 0:00:44]}  Qf7 {[%clk 0:01:36]} 29. Qxf7+ {[%clk 0:00:42]}  Kxf7 {[%clk 0:01:36]} 30. Rd4 {[%clk 0:00:32]}  Bc7 {[%clk 0:01:30]} 31. Bf4 {[%clk 0:00:28]}  Bxf4 {[%clk 0:01:26]} 32. Rxf4 {[%clk 0:00:28]}  Be6 {[%clk 0:01:27]} 33. Rb4 {[%clk 0:00:28]}  Ra7 {[%clk 0:01:24]} 34. Rd1 {[%clk 0:00:27]}  Re8 {[%clk 0:01:23]} 35. f4 {[%clk 0:00:25]}  Bb3 {[%clk 0:01:16]} 36. Rd7+ {[%clk 0:00:23]}  Re7 {[%clk 0:01:16]} 37. Rxe7+ {[%clk 0:00:21]}  Kxe7 {[%clk 0:01:16]} 38. Kf2 {[%clk 0:00:21]}  Kd7 {[%clk 0:01:16]} 39. Ke3 {[%clk 0:00:21]}  Kc7 {[%clk 0:01:15]} 40. Kd4 {[%clk 0:00:21]}  Ra8 {[%clk 0:01:15]} 41. Kc3 {[%clk 0:00:21]}  Ra5 {[%clk 0:01:10]} 42. Kd4 {[%clk 0:00:20]}  Ra8 {[%clk 0:01:10]} 43. Kc3 {[%clk 0:00:20]}  f5 {[%clk 0:01:07]} 44. Bh3 {[%clk 0:00:11]}  g6 {[%clk 0:01:05]} 45. g4 {[%clk 0:00:12]}  Re8 {[%clk 0:01:03]} 46. Kd2 {[%clk 0:00:10]}  fxg4 {[%clk 0:00:56]} 47. Bxg4 {[%clk 0:00:11]}  h5 {[%clk 0:00:49]} 48. Bf3 {[%clk 0:00:10]}  Rf8 {[%clk 0:00:46]} 49. Ke3 {[%clk 0:00:09]}  Rf6 {[%clk 0:00:44]} 50. Be4 {[%clk 0:00:08]}  Re6 {[%clk 0:00:44]} 51. Kd4 {[%clk 0:00:07]}  Rf6 {[%clk 0:00:40]} 52. Ke5 {[%clk 0:00:07]}  Re6+ {[%clk 0:00:40]} 53. Kd4 {[%clk 0:00:07]}  h4 {[%clk 0:00:40]} 54. f5 {[%clk 0:00:06]}  gxf5 {[%clk 0:00:39]} 55. Bxf5 {[%clk 0:00:07]}  Rf6 {[%clk 0:00:39]} 56. Ke5 {[%clk 0:00:06]}  Rh6 {[%clk 0:00:39]} 57. Rg4 {[%clk 0:00:06]}  Rh5 {[%clk 0:00:38]} 58. Rg7+ {[%clk 0:00:07]}  Kb8 {[%clk 0:00:38]} 59. Kf6 {[%clk 0:00:07]}  Rh6+ {[%clk 0:00:33]} 60. Bg6 {[%clk 0:00:07]}  Rh8 {[%clk 0:00:32]} 61. Bf7 {[%clk 0:00:04]}  Rd8 {[%clk 0:00:29]} 62. Bxb3 {[%clk 0:00:04]}  axb3 {[%clk 0:00:29]} 63. Rg4 {[%clk 0:00:03]}  Rd2 {[%clk 0:00:29]} 64. Rxh4 {[%clk 0:00:03]}  Rxb2 {[%clk 0:00:29]} 65. Ke5 {[%clk 0:00:03]}  Re2+ {[%clk 0:00:28]} 66. Kd6 {[%clk 0:00:03]}  b2 {[%clk 0:00:27]} 67. Rb4 {[%clk 0:00:04]}  Rxh2 {[%clk 0:00:27]} 68. a4 {[%clk 0:00:03]}  Ka7 {[%clk 0:00:27]} 69. Kc7 {[%clk 0:00:03]}  Rh7+ {[%clk 0:00:25]} 70. Kc8 {[%clk 0:00:03]}  Rh8+ {[%clk 0:00:18]} 71. Kc7 {[%clk 0:00:03]}  Rh7+ {[%clk 0:00:19]} 72. Kc8 {[%clk 0:00:04]}  Ka6 {[%clk 0:00:13]} 73. Rxb2 {[%clk 0:00:02]}  Ka5 {[%clk 0:00:12]} 74. Rxb7 {[%clk 0:00:02]}  Rh5 {[%clk 0:00:12]} 75. Kc7 {[%clk 0:00:02]}  Rxc5 {[%clk 0:00:12]} 76. Kd6 {[%clk 0:00:01]}  Rc1 {[%clk 0:00:12]} 77. Rc7 {[%clk 0:00:01]}  Kb6 {[%clk 0:00:11]} 78. Rc8 {[%clk 0:00:02]}  Rd1+ {[%clk 0:00:11]} 79. Ke5 {[%clk 0:00:02]}  c5 {[%clk 0:00:11]} 80. a5+ {[%clk 0:00:02]}  Kb5 {[%clk 0:00:11]} 81. a6 {[%clk 0:00:02]}  Re1+ {[%clk 0:00:12]} 82. Kd6 {[%clk 0:00:02]}  Rd1+ {[%clk 0:00:13]} 83. Ke5 {[%clk 0:00:03]}  Ra1 {[%clk 0:00:13]} 84. Rb8+ {[%clk 0:00:02]}  Kc6 {[%clk 0:00:13]} 85. Rc8+ {[%clk 0:00:02]}  Kb6 {[%clk 0:00:13]} 86. Rb8+ {[%clk 0:00:02]}  Kc7 {[%clk 0:00:13]} 87. Rb7+ {[%clk 0:00:02]}  Kc6 {[%clk 0:00:14]} 88. Re7 {[%clk 0:00:01]}  Rxa6 {[%clk 0:00:13]} 89. Ke4 {[%clk 0:00:02]}  Kb5 {[%clk 0:00:14]} 90. Kd3 {[%clk 0:00:02]}  Ra3+ {[%clk 0:00:14]} 91. Kc2 {[%clk 0:00:02]}  Kb4 {[%clk 0:00:15]} 92. Rb7+ {[%clk 0:00:02]}  Kc4 {[%clk 0:00:15]} 93. Rg7 {[%clk 0:00:03]}  Rc3+ {[%clk 0:00:15]} 94. Kd2 {[%clk 0:00:03]}  Rf3 {[%clk 0:00:16]} 95. Rg4+ {[%clk 0:00:03]}  Kb3 {[%clk 0:00:16]} 96. Kc1 {[%clk 0:00:03]}  c4 {[%clk 0:00:16]} 97. Rg6 {[%clk 0:00:01]}  Rf1+ {[%clk 0:00:16]} 98. Kd2 {[%clk 0:00:01]}  c3+ {[%clk 0:00:17]} 99. Ke2 {[%clk 0:00:01]}  Rf7 {[%clk 0:00:16]} 100. Rb6+ {[%clk 0:00:01]}  Kc2 {[%clk 0:00:16]} 101. Rc6 {[%clk 0:00:02]}  Re7+ {[%clk 0:00:16]} 102. Kf1 {[%clk 0:00:03]}  Kd2 {[%clk 0:00:16]} 103. Rd6+ {[%clk 0:00:02]}  Ke3 {[%clk 0:00:16]} 104. Rc6 {[%clk 0:00:02]}  Kd2 {[%clk 0:00:16]} 105. Rd6+ {[%clk 0:00:03]}  Kc2 {[%clk 0:00:16]} 106. Rc6 {[%clk 0:00:04]}  Rd7 {[%clk 0:00:15]} 107. Ke2 {[%clk 0:00:04]}  Rd5 {[%clk 0:00:14]} 108. Ke3 {[%clk 0:00:04]}  Rd7 {[%clk 0:00:12]} 109. Ke2 {[%clk 0:00:04]}  Kb2 {[%clk 0:00:12]} 110. Rb6+ {[%clk 0:00:04]}  Kc1 {[%clk 0:00:13]} 111. Rc6 {[%clk 0:00:05]}  c2 {[%clk 0:00:13]} 112. Ke1 {[%clk 0:00:05]}  Re7+ {[%clk 0:00:13]} 113. Kf2 {[%clk 0:00:05]}  Re4 {[%clk 0:00:13]} 114. Kf3 {[%clk 0:00:06]}  Re5 {[%clk 0:00:13]} 115. Kf4 {[%clk 0:00:04]}  Rd5 {[%clk 0:00:13]} 116. Ke4 {[%clk 0:00:04]}  Rd7 {[%clk 0:00:13]} 117. Ke3 {[%clk 0:00:00]}  Kd1 {[%clk 0:00:14]} 0-1


[Site "https://www.chess.com"]